[Event "10th Cesme Open-A 2024"]
[Site "Cesme"]
[Date "2024.06.23"]
[Round "1"]
[White "Tinmaz, Kerem"]
[Black "Bicer, Atakan Mert"]
[Result "0-1"]
[ECO "B23"]
[WhiteElo "2058"]
[BlackElo "2313"]
[Annotator "RC"]
[PlyCount "68"]
[EventDate "2024.06.23"]
[EventType "swiss"]
[EventCountry "TUR"]
[SourceTitle "playchess.com"]
[Source "ChessBase"]
[SourceQuality "1"]
[TimeControl "5400+30"]

1. e4 {[%emt 0:01:00]} c5 {[%emt 0:01:00]} 2. Nc3 {[%emt 0:00:30]} d6 {[%emt 0:00:30]} 3. d4 {[%emt 0:01:30]} cxd4 {[%emt 0:03:30]} 4. Qxd4 {[%emt 0:00:00]} Nc6 {[%emt 0:02:30]} 5. Qd2 {[%emt 0:01:00]} Nf6 {[%emt 0:00:00]} 6. b3 {[%emt 0:02:30]} e5 {[%emt 0:01:00]} 7. Bb2 {[%emt 0:02:30]} Be7 {[%emt 0:00:30]} 8. O-O-O {[%emt 0:00:30]} O-O {[%emt 0:00:30]} 9. Kb1 {[%emt 0:01:30]} Be6 {[%emt 0:14:30]} 10. f3 {[%emt 0:05:30]} a5 {[%emt 0:08:30]} 11. Bb5 {[%emt 0:27:30]} Qb6 {[%emt 0:10:30]} 12. Nge2 {[%emt 0:04:30]} Rfd8 {[%emt 0:08:30]} 13. Qe1 {[%emt 0:16:30]} Na7 {[%emt 0:14:30]} 14. Qg1 {[%emt 0:05:30]} Qc7 {[%emt 0:00:30]} 15. Qe3 {[%emt 0:03:30]} h6 {[%emt 0:09:30]} 16. Rd3 {[%emt 0:04:36]} d5 {[%emt 0:03:59]} 17. exd5 {[%emt 0:01:14]} Bc5 {[%emt 0:00:20]} 18. Qc1 {[%emt 0:08:40]} Bf5 {[%emt 0:00:58]} 19. Rdd1 {[%emt 0:03:24]} Nxb5 {[%emt 0:00:38]} 20. Nxb5 {[%emt 0:00:02]} Qb6 {[%emt 0:00:01]} 21. Nec3 {[%emt 0:01:52]} a4 {[%emt 0:06:26]} 22. bxa4 {[%emt 0:05:06]} Be3 {[%emt 0:00:31]} 23. Rd2 {[%emt 0:00:27]} Nxd5 {[%emt 0:01:48]} 24. Rhd1 {[%emt 0:02:21]} Nxc3+ {[%emt 0:01:47]} 25. Nxc3 {[%emt 0:00:32]} Bxd2 {[%emt 0:00:58]} 26. Rxd2 {[%emt 0:00:30]} Rxd2 {[%emt 0:00:30]} 27. Qxd2 {[%emt 0:00:30]} Qg1+ {[%emt 0:00:30]} 28. Bc1 {[%emt 0:00:30]} Rc8 {[%emt 0:00:30]} 29. g4 {[%emt 0:00:30]} Bg6 {[%emt 0:00:30]} 30. Kb2 {[%emt 0:00:30]} Qb6+ {[%emt 0:00:30]} 31. Ka1 {[%emt 0:00:30]} Qd4 {[%emt 0:00:30]} 32. Qxd4 {[%emt 0:00:30]} exd4 {[%emt 0:00:30]} 33. Nb5 {[%emt 0:00:30]} Rxc2 {[%emt 0:00:30]} 34. Bf4 {[%emt 0:00:30]} d3 {[%emt 0:00:30]} 0-1

[Event "10th Cesme Open-A 2024"]
[Site "Cesme"]
[Date "2024.06.23"]
[Round "1"]
[White "Demirtas, Alper"]
[Black "Taspinar, Yanki"]
[Result "1-0"]
[ECO "D02"]
[WhiteElo "2057"]
[BlackElo "2309"]
[Annotator "RC"]
[PlyCount "103"]
[EventDate "2024.06.23"]
[EventType "swiss"]
[EventCountry "TUR"]
[SourceTitle "playchess.com"]
[Source "ChessBase"]
[SourceQuality "1"]
[TimeControl "5400+30"]

1. Nf3 {[%emt 0:01:00]} Nf6 {[%emt 0:01:00]} 2. d4 {[%emt 0:00:30]} d5 {[%emt 0:00:30]} 3. c3 {[%emt 0:00:00]} Bf5 {[%emt 0:04:30]} 4. Qb3 {[%emt 0:00:00]} Qc8 {[%emt 0:00:30]} 5. c4 {[%emt 0:00:00]} e6 {[%emt 0:05:30]} 6. Nc3 {[%emt 0:03:00]} c6 {[%emt 0:01:30]} 7. Bf4 {[%emt 0:02:30]} Nbd7 {[%emt 0:04:30]} 8. h3 {[%emt 0:05:30]} Be7 {[%emt 0:04:30]} 9. Rc1 {[%emt 0:06:30]} O-O {[%emt 0:06:30]} 10. e3 {[%emt 0:01:30]} h6 {[%emt 0:02:30]} 11. Be2 {[%emt 0:03:30]} dxc4 {[%emt 0:16:30]} 12. Bxc4 {[%emt 0:04:30]} b5 {[%emt 0:04:30]} 13. Be2 {[%emt 0:01:30]} a6 {[%emt 0:00:30]} 14. Ne5 {[%emt 0:09:30]} Nxe5 {[%emt 0:03:30]} 15. Bxe5 {[%emt 0:00:30]} Nd7 {[%emt 0:04:30]} 16. Bg3 {[%emt 0:04:30]} c5 {[%emt 0:03:30]} 17. O-O {[%emt 0:05:30]} c4 {[%emt 0:04:30]} 18. Qd1 {[%emt 0:00:30]} Nb6 {[%emt 0:01:30]} 19. Bf3 {[%emt 0:07:30]} Ra7 {[%emt 0:01:30]} 20. e4 {[%emt 0:01:30]} Bg6 {[%emt 0:01:30]} 21. a4 {[%emt 0:00:30]} Qd7 {[%emt 0:06:30]} 22. a5 {[%emt 0:06:30]} Nc8 {[%emt 0:01:33]} 23. d5 {[%emt 0:03:30]} Bg5 {[%emt 0:07:41]} 24. Ra1 {[%emt 0:07:30]} exd5 {[%emt 0:10:16]} 25. Nxd5 {[%emt 0:00:30]} Ne7 {[%emt 0:02:16]} 26. h4 {[%emt 0:05:30]} Nxd5 {[%emt 0:00:51]} 27. hxg5 {[%emt 0:00:30]} Ne7 {[%emt 0:00:47]} 28. gxh6 {[%emt 0:07:43]} Qxd1 {[%emt 0:00:40]} 29. Rfxd1 {[%emt 0:00:30]} gxh6 {[%emt 0:00:30]} 30. Bf4 {[%emt 0:00:30]} Kh7 {[%emt 0:00:30]} 31. Rd6 {[%emt 0:00:30]} Nc8 {[%emt 0:00:30]} 32. Rf6 {[%emt 0:00:30]} Kg7 {[%emt 0:00:30]} 33. Be5 {[%emt 0:00:30]} Kg8 {[%emt 0:00:30]} 34. Bd4 {[%emt 0:00:30]} Rc7 {[%emt 0:00:30]} 35. Rxa6 {[%emt 0:00:30]} b4 {[%emt 0:00:30]} 36. Bb6 {[%emt 0:00:30]} Rc6 {[%emt 0:00:21]} 37. e5 {[%emt 0:05:58]} Re6 {[%emt 0:00:32]} 38. Bd5 {[%emt 0:00:30]} c3 {[%emt 0:00:02]} 39. bxc3 {[%emt 0:01:02]} Rxe5 {[%emt 0:00:05]} 40. c4 {[%emt 0:00:42]} Bd3 {[%emt 0:00:46]} 41. Ra8 {[%emt 0:02:22]} b3 {[%emt 0:01:17]} 42. Bd4 {[%emt 0:00:05]} Re2 {[%emt 0:00:20]} 43. Rb8 {[%emt 0:01:17]} Nd6 {[%emt 0:00:32]} 44. Rxb3 {[%emt 0:01:54]} Bxc4 {[%emt 0:00:00]} 45. Bxc4 {[%emt 0:00:11]} Nxc4 {[%emt 0:00:20]} 46. Rg3+ {[%emt 0:00:30]} Kh7 {[%emt 0:00:30]} 47. Rg7+ {[%emt 0:00:30]} Kh8 {[%emt 0:00:30]} 48. Rxf7+ {[%emt 0:00:30]} Kg8 {[%emt 0:00:30]} 49. Rxf8+ {[%emt 0:00:30]} Kxf8 {[%emt 0:00:30]} 50. a6 {[%emt 0:00:30]} Re8 {[%emt 0:00:30]} 51. a7 {[%emt 0:00:30]} Ra8 {[%emt 0:00:30]} 52. Rb1 {[%emt 0:00:30]} 1-0

[Event "10th Cesme Open-A 2024"]
[Site "Cesme"]
[Date "2024.06.23"]
[Round "1"]
[White "Cakiroglu, Metin"]
[Black "Koksal, Ege"]
[Result "0-1"]
[ECO "B11"]
[WhiteElo "2039"]
[BlackElo "2297"]
[Annotator "RC"]
[PlyCount "56"]
[EventDate "2024.06.23"]
[EventType "swiss"]
[EventCountry "TUR"]
[SourceTitle "playchess.com"]
[Source "ChessBase"]
[SourceQuality "1"]
[TimeControl "5400+30"]

1. e4 {[%emt 0:01:00]} c6 {[%emt 0:01:00]} 2. Nc3 {[%emt 0:00:30]} d5 {[%emt 0:00:30]} 3. Nf3 {[%emt 0:00:30]} Bg4 {[%emt 0:00:30]} 4. h3 {[%emt 0:00:30]} Bxf3 {[%emt 0:00:30]} 5. Qxf3 {[%emt 0:00:30]} e6 {[%emt 0:00:30]} 6. Be2 {[%emt 0:00:00]} g6 {[%emt 0:00:30]} 7. O-O {[%emt 0:05:00]} Bg7 {[%emt 0:00:30]} 8. d3 {[%emt 0:00:30]} Nd7 {[%emt 0:01:30]} 9. Qg3 {[%emt 0:01:30]} Ngf6 {[%emt 0:03:30]} 10. Bg5 {[%emt 0:07:30]} Qb8 {[%emt 0:01:30]} 11. f4 {[%emt 0:06:30]} Qc7 {[%emt 0:05:30]} 12. e5 {[%emt 0:01:30]} Ng8 {[%emt 0:00:30]} 13. d4 {[%emt 0:00:30]} Nh6 {[%emt 0:02:30]} 14. Qd3 {[%emt 0:08:30]} f5 {[%emt 0:03:30]} 15. exf6 {[%emt 0:04:30]} Nxf6 {[%emt 0:00:00]} 16. g4 {[%emt 0:05:30]} Nf7 {[%emt 0:01:00]} 17. Rae1 {[%emt 0:04:30]} Nxg5 {[%emt 0:05:30]} 18. fxg5 {[%emt 0:06:30]} Nd7 {[%emt 0:00:30]} 19. Bd1 {[%emt 0:01:30]} e5 {[%emt 0:06:30]} 20. dxe5 {[%emt 0:02:30]} Bxe5 {[%emt 0:01:30]} 21. Qd4 {[%emt 0:15:30]} O-O-O {[%emt 0:05:30]} 22. Qxa7 {[%emt 0:00:30]} Bxc3 {[%emt 0:05:30]} 23. Qa8+ {[%emt 0:06:30]} Nb8 {[%emt 0:00:00]} 24. bxc3 {[%emt 0:03:58]} Qg3+ {[%emt 0:00:00]} 25. Kh1 {[%emt 0:00:00]} Qxh3+ {[%emt 0:00:30]} 26. Kg1 {[%emt 0:00:23]} Qg3+ {[%emt 0:00:30]} 27. Kh1 {[%emt 0:00:30]} h6 {[%emt 0:00:00]} 28. gxh6 {[%emt 0:00:00]} Rxh6# {[%emt 0:00:00]} 0-1

[Event "10th Cesme Open-A 2024"]
[Site "Cesme"]
[Date "2024.06.23"]
[Round "1"]
[White "Portakalci, Yusuf"]
[Black "Karaoglan, Kivanc"]
[Result "1-0"]
[ECO "D02"]
[WhiteElo "2034"]
[BlackElo "2274"]
[Annotator "RC"]
[PlyCount "181"]
[EventDate "2024.06.23"]
[EventType "swiss"]
[EventCountry "TUR"]
[SourceTitle "playchess.com"]
[Source "ChessBase"]
[SourceQuality "1"]
[TimeControl "5400+30"]

1. d4 {[%emt 0:01:00]} Nf6 {[%emt 0:01:00]} 2. Nf3 {[%emt 0:00:30]} d5 {[%emt 0:00:30]} 3. Bf4 {[%emt 0:00:30]} c5 {[%emt 0:00:30]} 4. c3 {[%emt 0:00:00]} Nc6 {[%emt 0:01:30]} 5. e3 {[%emt 0:02:00]} Qb6 {[%emt 0:00:30]} 6. Qc1 {[%emt 0:02:30]} Bg4 {[%emt 0:04:30]} 7. Nbd2 {[%emt 0:02:30]} Rc8 {[%emt 0:05:30]} 8. Qb1 {[%emt 0:02:30]} e6 {[%emt 0:03:30]} 9. Bd3 {[%emt 0:02:30]} Be7 {[%emt 0:04:30]} 10. O-O {[%emt 0:04:30]} Bh5 {[%emt 0:04:30]} 11. Ne5 {[%emt 0:04:30]} Nxe5 {[%emt 0:04:30]} 12. dxe5 {[%emt 0:13:30]} Nd7 {[%emt 0:00:30]} 13. c4 {[%emt 0:00:30]} Bg6 {[%emt 0:04:30]} 14. Bg3 {[%emt 0:08:30]} O-O {[%emt 0:05:30]} 15. b3 {[%emt 0:07:30]} Rfd8 {[%emt 0:03:30]} 16. e4 {[%emt 0:21:30]} Nb8 {[%emt 0:18:30]} 17. exd5 {[%emt 0:08:26]} exd5 {[%emt 0:00:30]} 18. cxd5 {[%emt 0:02:04]} Rxd5 {[%emt 0:01:30]} 19. Nc4 {[%emt 0:02:17]} Qe6 {[%emt 0:02:30]} 20. Bxg6 {[%emt 0:02:52]} hxg6 {[%emt 0:00:30]} 21. f4 {[%emt 0:04:23]} Nc6 {[%emt 0:02:30]} 22. f5 {[%emt 0:01:53]} gxf5 {[%emt 0:01:30]} 23. Rxf5 {[%emt 0:03:44]} Nd4 {[%emt 0:04:30]} 24. Rf2 {[%emt 0:00:36]} Bg5 {[%emt 0:01:30]} 25. Kh1 {[%emt 0:00:51]} b5 {[%emt 0:07:33]} 26. Nd6 {[%emt 0:00:12]} Rc7 {[%emt 0:02:08]} 27. a4 {[%emt 0:01:13]} Be3 {[%emt 0:01:46]} 28. Rf1 {[%emt 0:00:51]} Ne2 {[%emt 0:01:18]} 29. Nf5 {[%emt 0:00:16]} Nxg3+ {[%emt 0:00:16]} 30. Nxg3 {[%emt 0:00:02]} b4 {[%emt 0:03:53]} 31. Qe4 {[%emt 0:00:57]} Qxe5 {[%emt 0:01:13]} 32. Qg4 {[%emt 0:00:35]} Rd4 {[%emt 0:01:41]} 33. Qh3 {[%emt 0:00:11]} Rf4 {[%emt 0:05:28]} 34. Rae1 {[%emt 0:00:28]} Qc3 {[%emt 0:01:00]} 35. Nf5 {[%emt 0:01:29]} Rxf1+ {[%emt 0:00:30]} 36. Rxf1 {[%emt 0:00:00]} Bd2 {[%emt 0:01:45]} 37. Qh4 {[%emt 0:00:02]} Qd3 {[%emt 0:00:23]} 38. Rd1 {[%emt 0:00:53]} Rd7 {[%emt 0:01:37]} 39. Ne7+ {[%emt 0:00:20]} Kf8 {[%emt 0:00:10]} 40. Nc6 {[%emt 0:00:00]} f6 {[%emt 0:00:37]} 41. Qh8+ {[%emt 0:00:27]} Kf7 {[%emt 0:00:00]} 42. Qh5+ {[%emt 0:00:06]} g6 {[%emt 0:00:57]} 43. Qh7+ {[%emt 0:00:50]} Ke6 {[%emt 0:00:41]} 44. Qg8+ {[%emt 0:00:30]} Kf5 {[%emt 0:00:32]} 45. Qe8 {[%emt 0:00:09]} Kg5 {[%emt 0:00:26]} 46. Ne7 {[%emt 0:01:00]} Rd4 {[%emt 0:00:29]} 47. h3 {[%emt 0:00:39]} Qe4 {[%emt 0:00:33]} 48. Rf1 {[%emt 0:01:05]} Rd3 {[%emt 0:00:29]} 49. Kh2 {[%emt 0:00:35]} Bf4+ {[%emt 0:00:51]} 50. Kg1 {[%emt 0:00:01]} Re3 {[%emt 0:00:07]} 51. h4+ {[%emt 0:00:47]} Kxh4 {[%emt 0:00:33]} 52. Qxg6 {[%emt 0:00:36]} Qxg6 {[%emt 0:00:34]} 53. Nxg6+ {[%emt 0:00:03]} Kg3 {[%emt 0:00:30]} 54. Nxf4 {[%emt 0:00:09]} Rxb3 {[%emt 0:00:00]} 55. Nh5+ {[%emt 0:00:56]} Kh4 {[%emt 0:00:27]} 56. Nxf6 {[%emt 0:00:00]} c4 {[%emt 0:00:03]} 57. Kh2 {[%emt 0:01:22]} Kg5 {[%emt 0:00:26]} 58. Ne4+ {[%emt 0:00:50]} Kg4 {[%emt 0:00:18]} 59. Nf6+ {[%emt 0:00:44]} Kg5 {[%emt 0:00:30]} 60. Ne4+ {[%emt 0:00:30]} Kg4 {[%emt 0:00:00]} 61. Nd2 {[%emt 0:00:00]} Rc3 {[%emt 0:00:00]} 62. Re1 {[%emt 0:00:01]} Rc2 {[%emt 0:01:36]} 63. Re4+ {[%emt 0:00:12]} Kf5 {[%emt 0:00:18]} 64. Rxc4 {[%emt 0:00:30]} Rxd2 {[%emt 0:00:30]} 65. Rxb4 {[%emt 0:00:30]} Ra2 {[%emt 0:00:00]} 66. Rb5+ {[%emt 0:00:00]} Kg4 {[%emt 0:00:59]} 67. Ra5 {[%emt 0:00:00]} Kh4 {[%emt 0:00:28]} 68. Rxa7 {[%emt 0:00:00]} Kg4 {[%emt 0:00:00]} 69. a5 {[%emt 0:00:00]} Kg5 {[%emt 0:00:02]} 70. a6 {[%emt 0:00:09]} Kg6 {[%emt 0:00:30]} 71. Ra8 {[%emt 0:00:00]} Kg7 {[%emt 0:00:00]} 72. Kh3 {[%emt 0:00:46]} Kg6 {[%emt 0:00:00]} 73. Kh4 {[%emt 0:00:02]} Kg7 {[%emt 0:00:35]} 74. g3 {[%emt 0:00:41]} Kg6 {[%emt 0:00:05]} 75. g4 {[%emt 0:00:45]} Ra3 {[%emt 0:00:13]} 76. g5 {[%emt 0:00:19]} Ra4+ {[%emt 0:00:43]} 77. Kg3 {[%emt 0:00:30]} Kg7 {[%emt 0:00:30]} 78. Kf3 {[%emt 0:00:30]} Kg6 {[%emt 0:00:30]} 79. Ke3 {[%emt 0:00:30]} Kg7 {[%emt 0:00:30]} 80. Kd3 {[%emt 0:00:30]} Ra5 {[%emt 0:00:30]} 81. Kc4 {[%emt 0:00:30]} Rxg5 {[%emt 0:00:30]} 82. Kb4 {[%emt 0:00:30]} Rg1 {[%emt 0:00:00]} 83. Kb5 {[%emt 0:02:04]} Rb1+ {[%emt 0:00:00]} 84. Kc6 {[%emt 0:00:30]} Rc1+ {[%emt 0:00:24]} 85. Kb7 {[%emt 0:00:30]} Rb1+ {[%emt 0:00:30]} 86. Ka7 {[%emt 0:00:30]} Kf7 {[%emt 0:00:30]} 87. Rb8 {[%emt 0:00:30]} Ra1 {[%emt 0:00:30]} 88. Rb6 {[%emt 0:00:30]} Re1 {[%emt 0:00:20]} 89. Ka8 {[%emt 0:00:26]} Re8+ {[%emt 0:05:32]} 90. Rb8 {[%emt 0:00:05]} Re7 {[%emt 0:00:48]} 91. Rb7 {[%emt 0:00:06]} 1-0

[Event "10th Cesme Open-A 2024"]
[Site "Cesme"]
[Date "2024.06.23"]
[Round "1"]
[White "Oney, Adil Feridun"]
[Black "Yermolinsky, Alex"]
[Result "0-1"]
[ECO "A47"]
[WhiteElo "2014"]
[BlackElo "2421"]
[Annotator "RC"]
[PlyCount "142"]
[EventDate "2024.06.23"]
[EventType "swiss"]
[EventCountry "TUR"]
[SourceTitle "playchess.com"]
[Source "ChessBase"]
[SourceQuality "1"]
[TimeControl "5400+30"]

1. d4 {[%emt 0:01:00]} Nf6 {[%emt 0:01:00]} 2. Nf3 {[%emt 0:00:00]} e6 {[%emt 0:00:30]} 3. Bf4 {[%emt 0:00:00]} b6 {[%emt 0:00:30]} 4. e3 {[%emt 0:00:30]} Bb7 {[%emt 0:00:00]} 5. h3 {[%emt 0:01:30]} Bd6 {[%emt 0:01:00]} 6. Ne5 {[%emt 0:05:30]} O-O {[%emt 0:00:30]} 7. Nd2 {[%emt 0:00:30]} Be7 {[%emt 0:02:30]} 8. Nef3 {[%emt 0:01:30]} c5 9. c3 {[%emt 0:00:30]} cxd4 {[%emt 0:02:00]} 10. exd4 {[%emt 0:00:30]} d6 {[%emt 0:00:30]} 11. Be2 {[%emt 0:00:30]} Nbd7 {[%emt 0:00:30]} 12. O-O {[%emt 0:00:30]} Re8 {[%emt 0:00:30]} 13. Re1 {[%emt 0:00:00]} Bf8 {[%emt 0:01:30]} 14. Bf1 {[%emt 0:00:00]} a6 {[%emt 0:01:30]} 15. a4 {[%emt 0:00:30]} Qc7 {[%emt 0:00:30]} 16. Bh2 {[%emt 0:03:30]} Rad8 {[%emt 0:01:30]} 17. Nc4 {[%emt 0:01:30]} h6 {[%emt 0:06:30]} 18. Nfd2 {[%emt 0:12:30]} Qc6 {[%emt 0:04:30]} 19. Ne3 {[%emt 0:01:30]} e5 {[%emt 0:01:30]} 20. Qb3 {[%emt 0:07:30]} g6 {[%emt 0:07:30]} 21. Rad1 {[%emt 0:04:30]} h5 {[%emt 0:01:30]} 22. Nf3 {[%emt 0:03:30]} e4 {[%emt 0:04:30]} 23. Ng5 {[%emt 0:03:30]} d5 {[%emt 0:00:30]} 24. h4 {[%emt 0:02:30]} Bd6 {[%emt 0:03:30]} 25. Bxd6 {[%emt 0:00:30]} Qxd6 {[%emt 0:00:30]} 26. g3 {[%emt 0:00:30]} Ng4 {[%emt 0:05:30]} 27. Nh3 {[%emt 0:00:30]} Nxe3 {[%emt 0:03:30]} 28. Rxe3 {[%emt 0:00:30]} Nf6 {[%emt 0:00:30]} 29. Be2 {[%emt 0:03:30]} Bc8 {[%emt 0:00:30]} 30. Nf4 {[%emt 0:01:30]} Bg4 {[%emt 0:00:00]} 31. Re1 {[%emt 0:00:30]} Bxe2 {[%emt 0:00:00]} 32. R3xe2 {[%emt 0:00:30]} Re7 {[%emt 0:01:30]} 33. Qd1 {[%emt 0:03:30]} b5 {[%emt 0:02:30]} 34. axb5 {[%emt 0:00:30]} axb5 {[%emt 0:00:00]} 35. Qb3 {[%emt 0:00:30]} b4 {[%emt 0:02:00]} 36. Ng2 {[%emt 0:05:30]} bxc3 {[%emt 0:01:30]} 37. bxc3 {[%emt 0:00:00]} Rc7 {[%emt 0:00:30]} 38. Ne3 {[%emt 0:01:00]} Ng4 {[%emt 0:01:30]} 39. Ra1 {[%emt 0:02:30]} Qc6 {[%emt 0:07:30]} 40. Ra3 {[%emt 0:02:30]} Rb7 {[%emt 0:00:30]} 41. Qa2 {[%emt 0:00:30]} Kg7 {[%emt 0:04:30]} 42. Rb3 {[%emt 0:03:30]} Nxe3 {[%emt 0:03:30]} 43. Rxb7 {[%emt 0:01:30]} Qxb7 {[%emt 0:00:30]} 44. Rxe3 {[%emt 0:00:00]} Ra8 {[%emt 0:02:30]} 45. Qd2 {[%emt 0:00:00]} Qb3 {[%emt 0:01:30]} 46. Re1 {[%emt 0:02:30]} Ra6 {[%emt 0:01:30]} 47. Kg2 {[%emt 0:00:30]} Rf6 {[%emt 0:01:30]} 48. Re3 {[%emt 0:00:30]} Rc6 {[%emt 0:01:30]} 49. Qc1 {[%emt 0:01:30]} Qa2 {[%emt 0:00:30]} 50. Qd1 {[%emt 0:02:30]} Qb2 {[%emt 0:00:30]} 51. Qe1 {[%emt 0:00:30]} Qc2 {[%emt 0:00:30]} 52. Kh2 {[%emt 0:03:30]} Rb6 {[%emt 0:00:30]} 53. Re2 {[%emt 0:00:30]} Qd3 {[%emt 0:00:30]} 54. Re3 {[%emt 0:00:30]} Rb1 {[%emt 0:00:30]} 55. Rxd3 {[%emt 0:02:36]} Rxe1 {[%emt 0:00:30]} 56. Rd2 {[%emt 0:00:24]} Rc1 {[%emt 0:00:30]} 57. Ra2 {[%emt 0:00:00]} Rxc3 {[%emt 0:00:30]} 58. Ra5 {[%emt 0:00:00]} Rf3 {[%emt 0:00:30]} 59. Rxd5 {[%emt 0:00:30]} Rxf2+ {[%emt 0:00:00]} 60. Kg1 {[%emt 0:00:00]} Rd2 {[%emt 0:00:00]} 61. Kf1 {[%emt 0:01:00]} Kf8 {[%emt 0:03:30]} 62. Kg1 {[%emt 0:00:30]} f6 {[%emt 0:02:30]} 63. Rd7 {[%emt 0:01:30]} e3 {[%emt 0:02:52]} 64. Kf1 {[%emt 0:00:30]} Rf2+ {[%emt 0:00:00]} 65. Ke1 {[%emt 0:00:30]} Rg2 {[%emt 0:00:51]} 66. d5 {[%emt 0:00:00]} Rxg3 {[%emt 0:00:12]} 67. d6 {[%emt 0:00:00]} Rg2 {[%emt 0:05:38]} 68. Ra7 {[%emt 0:00:30]} Rd2 {[%emt 0:00:15]} 69. Rd7 {[%emt 0:00:30]} f5 {[%emt 0:00:47]} 70. Rd8+ {[%emt 0:01:30]} Kf7 {[%emt 0:00:13]} 71. Rd7+ {[%emt 0:00:30]} Kf6 {[%emt 0:00:16]} 0-1